bitfinex/quotes_BTCUSD_20241202
["timestamp","ask_amount","ask_price","bid_price","bid_amount"]
[1733160233422,0.20104095,95923.0,95922.0,0.0107282]
[1733160233423,0.56064933,95923.0,95922.0,0.0107282]
[1733160233641,0.57602284,95923.0,95922.0,0.0107282]
[1733160234822,0.57602284,95923.0,95922.0,0.0017282]
[1733160235277,0.57602284,95923.0,95922.0,0.0037282]
[1733160235503,0.57602284,95923.0,95922.0,0.0017282]
[1733160235958,0.408522,95913.0,95912.0,0.0017284]
[1733160236170,0.43350389,95913.0,95912.0,0.0017284]
[1733160236675,0.63350389,95913.0,95912.0,0.0017284]
[1733160238017,0.63550389,95913.0,95912.0,0.0017284]
[1733160238949,0.78550389,95913.0,95912.0,0.0017284]
[1733160240895,0.78500349,95913.0,95912.0,0.0017284]
[1733160243165,0.78500349,95913.0,95912.0,0.0033268]
[1733160243390,0.78497146,95913.0,95912.0,0.0033268]
[1733160243636,0.1994996,95883.0,95882.0,0.001729]
[1733160243845,0.5494996,95883.0,95882.0,0.001729]
[1733160244131,0.57444946,95883.0,95882.0,0.001729]
[1733160244354,0.57444946,95883.0,95863.0,0.00031329]
[1733160244355,0.6081276,95864.0,95863.0,0.00031329]
[1733160244591,0.78307746,95864.0,95863.0,0.00031329]
[1733160245038,0.78318186,95864.0,95863.0,0.00031329]
[1733160245728,0.78418186,95864.0,95863.0,0.00031329]
[1733160245977,0.78418186,95864.0,95830.0,0.0017296]
[1733160245978,0.2087,95831.0,95830.0,0.0007296]
[1733160246186,0.2087,95831.0,95830.0,0.10357481]
[1733160246668,0.417392,95833.0,95830.0,0.10357481]
[1733160246877,0.1994996,95833.0,95831.0,0.10284521]
[1733160247079,0.1994996,95833.0,95832.0,0.01061702]
[1733160247314,0.1994996,95833.0,95832.0,0.11346223]
[1733160247798,0.1994996,95833.0,95832.0,0.10284521]
[1733160248567,0.1994996,95849.0,95832.0,0.10884521]
[1733160248786,0.1994996,95849.0,95833.0,0.10469171]
[1733160249011,0.1994996,95843.0,95833.0,0.10469171]
[1733160249258,0.1994996,95843.0,95833.0,0.31338571]
[1733160249493,0.1994996,95843.0,95834.0,0.04047703]
[1733160249762,0.1994996,95843.0,95835.0,0.10469176]
[1733160250927,0.002,95849.0,95837.0,0.10284521]
[1733160251160,0.208617,95870.0,95847.0,0.208664]
[1733160251161,0.1994996,95856.0,95847.0,0.208664]
[1733160251411,0.1994996,95856.0,95848.0,0.15671023]
[1733160252149,0.1994996,95860.0,95850.0,0.283758]
[1733160252369,0.208567,95893.0,95850.0,0.283758]
[1733160252370,0.1994996,95864.0,95851.0,0.1046914]
[1733160252602,0.2,95860.0,95851.0,0.1046914]
[1733160253365,0.1994996,95864.0,95851.0,0.1046914]
[1733160253839,0.1994996,95864.0,95858.0,0.0017284]
[1733160254080,0.4081296,95864.0,95859.0,0.10284521]
[1733160254521,0.2,95865.0,95859.0,0.10284521]
[1733160254752,0.1994996,95864.0,95859.0,0.10284521]
[1733160255398,0.2044996,95864.0,95859.0,0.10284521]
[1733160255622,0.1994996,95864.0,95860.0,0.01045736]
[1733160255833,0.4081286,95864.0,95861.0,0.10284521]
[1733160256437,0.208639,95859.0,95858.0,0.0017284]
[1733160256676,0.3994996,95860.0,95858.0,0.10457361]
[1733160256927,0.1994996,95860.0,95859.0,0.11330257]
[1733160257601,0.2044996,95864.0,95859.0,0.11330257]
[1733160257820,0.1994996,95863.0,95859.0,0.11514876]
[1733160258047,0.003,95860.0,95859.0,0.11514876]
[1733160258284,0.003,95860.0,95859.0,0.32378777]
[1733160258503,0.003,95860.0,95859.0,0.40464157]
[1733160258733,0.1994996,95872.0,95859.0,0.40464157]
[1733160258953,0.1994996,95872.0,95860.0,0.06340687]
[1733160259178,0.1994996,95872.0,95861.0,0.10284521]
[1733160259310,0.1994996,95879.0,95862.0,0.00184605]
[1733160259548,0.2,95884.0,95862.0,0.00184605]
[1733160259549,0.1994996,95875.0,95869.0,0.208617]
[1733160259735,0.1994996,95875.0,95863.0,0.13361801]
[1733160259736,0.1994996,95877.0,95870.0,0.10469116]
[1733160259993,0.1994996,95886.0,95873.0,0.208608]
[1733160260209,0.208555,95898.0,95870.0,0.10469116]
[1733160260210,0.1994996,95893.0,95874.0,0.10469102]
[1733160260422,0.2008641,95923.0,95874.0,0.10469102]
[1733160260423,0.2,95898.0,95888.0,0.208576]
[1733160260639,0.1994996,95898.0,95894.0,0.208561]
[1733160260879,0.0008641,95923.0,95895.0,0.10469063]
[1733160260880,0.1994996,95903.0,95895.0,0.10469063]
[1733160261776,0.1994996,95903.0,95895.0,0.10528081]
[1733160261996,0.002,95898.0,95895.0,0.10528081]
[1733160262215,0.002,95898.0,95896.0,0.208559]
[1733160262668,0.002,95898.0,95897.0,0.1569309]
[1733160262672,0.002,95898.0,95897.0,0.2809309]
[1733160262889,0.002,95898.0,95897.0,0.27908549]
[1733160263113,0.002,95898.0,95897.0,0.45208549]
[1733160263341,0.0008642,95913.0,95897.0,0.10284521]
[1733160263342,0.1994996,95903.0,95897.0,0.10284521]
[1733160263597,0.1994996,95903.0,95895.0,0.00059018]
[1733160263598,0.3994996,95896.0,95895.0,0.00059018]
[1733160263865,0.3994996,95896.0,95895.0,0.00559018]
[1733160264093,0.3994996,95896.0,95895.0,0.00059018]
[1733160264550,0.15,95911.0,95895.0,0.10343539]
[1733160264551,0.2,95902.0,95895.0,0.10343539]
[1733160264767,0.1994996,95897.0,95896.0,0.10284521]
[1733160265902,0.2,95902.0,95896.0,0.10284521]
[1733160265903,0.1994996,95899.0,95896.0,0.10284521]
[1733160266350,0.1508641,95923.0,95896.0,0.10284521]
[1733160266351,0.1994996,95903.0,95897.0,0.21040247]
[1733160266600,0.1994996,95903.0,95898.0,0.10284521]
[1733160266822,0.2,95907.0,95900.0,0.20855]
[1733160267044,0.2,95907.0,95901.0,0.10469058]
[1733160267273,0.1508641,95923.0,95903.0,0.10284521]
[1733160267274,0.1994996,95920.0,95903.0,0.10284521]
[1733160267508,0.1994996,95919.0,95909.0,0.20853]
[1733160267725,0.2,95922.0,95910.0,0.10469033]
[1733160267952,0.1994996,95919.0,95911.0,0.208526]
[1733160268179,0.0008641,95923.0,95912.0,0.1046903]
[1733160268870,0.0008641,95923.0,95912.0,0.1510903]
[1733160270261,0.0008641,95923.0,95912.0,0.1570903]
[1733160270484,0.0008641,95923.0,95912.0,0.3075907]
[1733160270711,0.0008641,95923.0,95912.0,0.38104561]
[1733160270936,0.0008641,95923.0,95912.0,0.49287707]
[1733160271155,0.0008641,95923.0,95912.0,0.49237667]
[1733160271383,0.0008641,95923.0,95912.0,0.49287707]
[1733160271613,0.0008641,95923.0,95912.0,0.48387707]
[1733160271828,0.0008641,95923.0,95912.0,0.48337667]
[1733160272044,0.0008641,95923.0,95912.0,0.49287707]
[1733160274045,0.0008641,95923.0,95912.0,0.49237667]
[1733160274267,0.0008641,95923.0,95912.0,0.49287707]
[1733160274496,0.0008641,95923.0,95912.0,0.34237667]
[1733160274721,0.4080026,95922.0,95912.0,0.11184521]
[1733160274951,0.2003638,95913.0,95912.0,0.11184521]
[1733160275171,0.2003638,95913.0,95912.0,0.009]
[1733160275384,0.2003638,95913.0,95912.0,0.11184521]
[1733160275629,0.2003638,95913.0,95912.0,0.12302973]
[1733160276282,0.0008642,95913.0,95912.0,0.12302973]
[1733160276505,0.0008642,95913.0,95912.0,0.11402973]
[1733160276723,0.0008642,95913.0,95912.0,0.12302973]
[1733160277189,0.0008642,95913.0,95912.0,0.11184521]
[1733160277835,0.0008642,95913.0,95912.0,0.11369039]
[1733160279377,0.0008642,95913.0,95912.0,0.19349039]
[1733160279589,0.0008642,95913.0,95912.0,0.34349039]
[1733160279799,0.0008642,95913.0,95912.0,0.34164521]
[1733160280254,0.0008642,95913.0,95912.0,0.44300927]
[1733160280920,0.0008642,95913.0,95912.0,1.14300927]
[1733160288542,0.0008642,95913.0,95912.0,0.81184521]
[1733160289651,0.0008642,95913.0,95912.0,0.11184521]
[1733160291414,0.0008642,95913.0,95897.0,0.208555]
[1733160291415,0.1994996,95881.0,95834.0,0.0005004]
[1733160291659,0.4081236,95866.0,95865.0,0.7]
[1733160291890,0.15,95893.0,95865.0,0.7]
[1733160291891,0.3994996,95875.0,95865.0,0.88330257]
[1733160292100,0.208596,95879.0,95866.0,0.10469117]
[1733160292409,0.1994996,95881.0,95866.0,0.10469117]
[1733160292615,0.21821524,95880.0,95868.0,0.20862]
[1733160292829,0.00962124,95880.0,95869.0,0.10469105]
[1733160293042,0.208598,95878.0,95870.0,0.04506734]
[1733160293257,0.208598,95878.0,95871.0,0.10469107]
[1733160293705,0.1994996,95881.0,95871.0,0.10469107]
[1733160294605,0.208604,95876.0,95871.0,0.10469107]
[1733160294821,0.417208,95876.0,95871.0,0.10469107]
[1733160295066,0.208604,95876.0,95871.0,0.11996789]
[1733160295286,0.208603,95876.0,95871.0,0.11996789]
[1733160295517,0.208603,95876.0,95871.0,0.12296789]
[1733160295732,0.417206,95876.0,95871.0,0.10769107]
[1733160295950,0.617206,95876.0,95871.0,0.10284521]
[1733160296191,0.6167136,95874.0,95871.0,0.10684521]
[1733160296406,0.2,95869.0,95868.0,0.00017709]
[1733160296837,0.20960873,95869.0,95868.0,0.00017709]
[1733160297255,0.2,95869.0,95868.0,0.00017709]
[1733160298792,0.2,95871.0,95868.0,0.1030223]
[1733160299021,0.1994996,95873.0,95869.0,0.10284521]
[1733160299241,0.2,95871.0,95869.0,0.10284521]
[1733160299724,0.2,95881.0,95869.0,0.10469123]
[1733160299944,0.1994996,95880.0,95869.0,0.10284521]
[1733160300215,0.208606,95875.0,95869.0,0.10284521]
[1733160300726,0.2,95876.0,95869.0,0.10284521]
[1733160300960,0.208604,95875.0,95869.0,0.10284521]
[1733160301478,0.2,95876.0,95869.0,0.10284521]
[1733160301972,0.208604,95875.0,95869.0,0.10284521]
[1733160302225,0.2,95876.0,95869.0,0.10284521]
[1733160302445,0.1994996,95880.0,95870.0,0.00184599]
[1733160302670,0.1994996,95880.0,95871.0,0.10284521]
[1733160302899,0.1994996,95880.0,95872.0,0.00184587]
[1733160303138,0.208574,95889.0,95868.0,0.00017709]
[1733160303139,0.1994996,95869.0,95868.0,0.00017709]
[1733160303358,0.3994996,95869.0,95868.0,0.00017709]
[1733160303579,0.4224996,95869.0,95868.0,0.00017709]
[1733160304270,0.20908319,95869.0,95868.0,0.00017709]
[1733160304504,0.1994996,95869.0,95868.0,0.1030223]
[1733160304725,0.2,95876.0,95868.0,0.11332453]
[1733160304942,0.2,95876.0,95869.0,0.10284521]
[1733160304943,0.3994996,95876.0,95869.0,0.10284521]
[1733160305158,0.6081026,95876.0,95869.0,0.10284521]
[1733160305803,0.1994996,95875.0,95869.0,0.10284521]
[1733160306241,0.208607,95874.0,95869.0,0.10284521]
[1733160306464,0.417214,95874.0,95869.0,0.10284521]
[1733160306693,0.1994996,95875.0,95869.0,0.10284521]
[1733160307160,0.1994996,95875.0,95869.0,0.1046912]
[1733160307616,0.1994996,95875.0,95869.0,0.10284521]
[1733160308761,0.1994996,95875.0,95869.0,0.10484521]
[1733160308981,0.1994996,95875.0,95869.0,0.10284521]
[1733160309210,0.20857,95891.0,95870.0,0.01253283]
[1733160309211,0.1994996,95891.0,95870.0,0.01253283]
[1733160309429,0.2008641,95923.0,95870.0,0.01253283]
[1733160309430,0.2,95904.0,95881.0,0.31143621]
[1733160309655,0.2,95899.0,95882.0,0.13583433]
[1733160309883,0.408553,95899.0,95883.0,0.208587]
[1733160310105,0.2,95895.0,95884.0,0.10469076]
[1733160310336,0.208504,95922.0,95884.0,0.10284521]
[1733160310337,0.408583,95885.0,95884.0,0.10284521]
[1733160310559,0.6080826,95885.0,95884.0,0.10284521]
[1733160311025,0.2,95877.0,95870.0,0.01068683]
[1733160311250,0.2,95877.0,95868.0,0.00017709]
[1733160311251,0.2,95877.0,95871.0,0.10284521]
[1733160311906,0.2,95887.0,95873.0,0.208609]
[1733160312120,0.1994996,95891.0,95882.0,0.005]
[1733160312343,0.20851,95919.0,95883.0,0.10469093]
[1733160312344,0.2,95889.0,95883.0,0.10469093]
[1733160312570,0.208578,95887.0,95883.0,0.10284521]
[1733160313027,0.2,95889.0,95883.0,0.10284521]
[1733160313265,0.1994996,95890.0,95883.0,0.10284521]
[1733160313266,0.001,95887.0,95883.0,0.10284521]
[1733160313491,0.1994996,95890.0,95884.0,0.00184574]
[1733160313712,0.1994996,95890.0,95885.0,0.10284521]
[1733160313923,0.001,95887.0,95885.0,0.10284521]
[1733160314155,0.001,95887.0,95886.0,0.05656909]
[1733160314376,0.001,95887.0,95886.0,0.24316002]
[1733160314619,0.001,95887.0,95886.0,0.3913143]
[1733160315582,0.0008649,95895.0,95886.0,0.3913143]
[1733160315796,0.0008649,95895.0,95894.0,0.46140821]
[1733160316017,0.0008649,95895.0,95894.0,0.52859116]
[1733160317088,0.0018649,95895.0,95894.0,0.53659116]
[1733160317531,0.0018649,95895.0,95894.0,1.36579116]
[1733160317745,0.0008642,95913.0,95910.0,0.208528]
[1733160317981,0.0008642,95913.0,95911.0,0.10469034]
[1733160318209,0.0008642,95913.0,95912.0,0.05217533]
[1733160318455,0.0008642,95913.0,95912.0,0.15686565]
[1733160319168,0.00145401,95913.0,95912.0,0.15686565]
[1733160319635,0.00145401,95913.0,95912.0,0.16386565]
[1733160320843,0.00145401,95913.0,95912.0,0.31386565]
[1733160321062,0.00145401,95913.0,95912.0,0.36022054]
[1733160321741,0.00145401,95913.0,95912.0,0.10984521]
[1733160321958,0.20145401,95913.0,95912.0,0.007]
[1733160322192,0.42395361,95913.0,95912.0,0.707]
[1733160322411,0.42395361,95913.0,95912.0,0.7]
[1733160322631,0.42395361,95913.0,95912.0,0.709]
[1733160322632,0.43359264,95913.0,95912.0,0.709]
[1733160322848,0.44901429,95913.0,95912.0,0.709]
[1733160323137,0.44901429,95913.0,95873.0,0.208608]
[1733160323138,0.1994996,95883.0,95873.0,0.208609]
[1733160323351,0.1994996,95883.0,95876.0,0.7]
[1733160323564,0.1994996,95883.0,95877.0,0.10284521]
[1733160324440,0.19961024,95883.0,95877.0,0.10284521]
[1733160324873,0.19961024,95883.0,95878.0,0.10283146]
[1733160325093,0.19961024,95883.0,95879.0,0.10284521]
[1733160325983,0.2,95880.0,95879.0,0.10284521]
[1733160326651,0.2,95880.0,95879.0,0.11184521]
[1733160327136,0.1994996,95881.0,95879.0,0.11184521]
[1733160327345,0.1994996,95881.0,95879.0,0.10284521]
[1733160327777,0.1994996,95881.0,95880.0,0.0313182]
[1733160327990,0.4080906,95881.0,95880.0,0.10284521]
[1733160328225,0.1994996,95881.0,95880.0,0.10284521]
[1733160329108,0.00011064,95883.0,95880.0,0.10469108]
[1733160329330,0.00011064,95883.0,95882.0,0.10284521]
[1733160329553,0.00011064,95883.0,95882.0,0.1046908]
[1733160329788,0.00011064,95883.0,95882.0,0.10284521]
[1733160330227,0.00011064,95883.0,95882.0,0.80284521]
[1733160330443,0.00011064,95883.0,95882.0,0.90567667]
[1733160330655,0.00011064,95883.0,95882.0,1.11426567]
[1733160330866,0.00011064,95883.0,95882.0,1.11405711]
[1733160331993,0.00011064,95883.0,95882.0,1.38845711]
[1733160332458,0.00011064,95883.0,95882.0,0.81163665]
[1733160332683,0.60819724,95883.0,95882.0,0.7]
[1733160332906,0.60819724,95883.0,95882.0,0.81184521]
[1733160332907,0.00011064,95883.0,95882.0,0.81184521]
[1733160333133,0.00011064,95883.0,95882.0,0.88814521]
[1733160333423,0.00011064,95883.0,95882.0,1.08773421]
[1733160333680,0.00011064,95883.0,95882.0,1.24796567]
[1733160333904,0.00011064,95883.0,95882.0,1.23996567]
[1733160334137,0.00011064,95883.0,95882.0,1.24696567]
[1733160334342,0.00011064,95883.0,95882.0,1.39696567]
[1733160334582,0.00965311,95906.0,95883.0,0.15]
[1733160334837,0.00145501,95895.0,95894.0,0.208563]
[1733160335070,0.00145501,95895.0,95894.0,0.46325361]
[1733160335327,0.00145501,95895.0,95894.0,0.46140821]
[1733160336455,0.00145501,95895.0,95894.0,0.47040821]
[1733160336674,0.00145501,95895.0,95894.0,0.59340821]
[1733160336895,0.00145501,95895.0,95894.0,0.69451307]
[1733160337332,0.00145501,95895.0,95894.0,0.68551307]
[1733160338002,0.00145501,95895.0,95894.0,0.68041307]
[1733160338736,0.00145501,95895.0,95894.0,0.68941307]
[1733160338953,0.00145501,95895.0,95894.0,0.68041307]
[1733160339165,0.00145501,95895.0,95894.0,0.68941307]
[1733160339825,0.00145501,95895.0,95894.0,0.32040821]
[1733160340477,0.0008642,95913.0,95894.0,0.32040821]
[1733160340478,0.0008642,95913.0,95902.0,0.208546]
[1733160340698,0.0008642,95913.0,95912.0,0.46136921]
[1733160342563,0.0008642,95913.0,95912.0,0.47036921]
[1733160342981,0.0008642,95913.0,95912.0,0.46136921]
[1733160343194,0.0008642,95913.0,95912.0,0.53735883]
[1733160344914,0.0008642,95913.0,95912.0,0.54635883]
[1733160345341,0.0008642,95913.0,95912.0,0.52835883]
[1733160345581,0.0008642,95913.0,95912.0,0.32883483]
[1733160346050,0.0008642,95913.0,95912.0,0.11184521]
[1733160347600,0.0008642,95913.0,95912.0,0.12958032]
[1733160347825,0.0008642,95913.0,95912.0,0.11184521]
[1733160348046,0.0008642,95913.0,95912.0,0.10284521]
[1733160348269,0.0008642,95913.0,95912.0,0.11184521]
[1733160348483,0.0008642,95913.0,95912.0,0.16473563]
[1733160348713,0.0008642,95913.0,95912.0,0.11184521]
[1733160349183,0.0008642,95913.0,95912.0,0.10469043]
[1733160349428,0.0008642,95913.0,95912.0,0.11369043]
[1733160350089,0.0008642,95913.0,95912.0,0.26369043]
[1733160350328,0.0008642,95913.0,95912.0,0.33163028]
[1733160352943,0.0008642,95913.0,95912.0,0.11184521]
[1733160353188,0.2003638,95913.0,95912.0,0.11184521]
[1733160353402,0.4003638,95913.0,95912.0,0.11184521]
[1733160354910,0.3993638,95913.0,95912.0,0.11184521]
[1733160355600,0.3993638,95913.0,95912.0,0.10284521]
[1733160355842,0.3993638,95913.0,95912.0,0.11312973]
[1733160356094,0.3993638,95913.0,95912.0,0.005]
[1733160356325,0.6079228,95896.0,95895.0,0.0017298]
[1733160356587,0.6079228,95896.0,95895.0,0.10457501]
[1733160356822,0.61758648,95896.0,95895.0,0.10457501]
[1733160358235,0.61758648,95896.0,95895.0,0.10857501]
[1733160358474,0.61758648,95896.0,95895.0,0.0057298]
[1733160358721,0.6560624,95896.0,95895.0,0.0057298]
[1733160359148,0.6309228,95896.0,95895.0,0.0057298]
[1733160359149,0.65607334,95896.0,95895.0,0.0057298]
[1733160359518,0.65607334,95896.0,95895.0,0.0017298]
[1733160359932,0.63307334,95896.0,95895.0,0.0017298]
[1733160360145,0.61759608,95896.0,95895.0,0.0017298]
[1733160361702,0.61859608,95896.0,95895.0,0.0017298]
[1733160361917,0.61859608,95896.0,95876.0,0.0017298]
[1733160361918,0.5993638,95877.0,95876.0,0.0017298]
[1733160362171,0.99063708,95877.0,95876.0,0.0017298]
[1733160362421,1.1579788,95870.0,95827.0,0.0008648]
[1733160362644,1.1810028,95859.0,95827.0,0.0008648]
[1733160362867,1.25232434,95859.0,95827.0,0.0008648]
[1733160363076,0.6080638,95831.0,95827.0,0.0008648]
[1733160363294,0.6080638,95831.0,95830.0,0.10357481]
[1733160363955,0.63788635,95831.0,95830.0,0.10357481]
[1733160364257,0.6080638,95831.0,95830.0,0.10357481]
[1733160364413,0.6080638,95831.0,95830.0,0.10368545]
[1733160365028,0.6080638,95831.0,95830.0,0.11268545]
[1733160365288,0.6080638,95831.0,95830.0,0.10368545]
[1733160365289,0.3993638,95831.0,95830.0,0.10368545]
[1733160365586,0.3993638,95831.0,95830.0,0.10868545]
[1733160365794,0.3993638,95831.0,95830.0,0.00584024]
[1733160366009,0.40887765,95831.0,95830.0,0.00084024]
[1733160366223,0.47658412,95831.0,95830.0,0.00384024]
[1733160367077,0.4223638,95831.0,95830.0,0.00384024]
[1733160367503,0.4223638,95831.0,95830.0,0.00084024]
[1733160367920,0.3993638,95831.0,95830.0,0.00384024]
[1733160368156,0.3993638,95831.0,95830.0,0.00084024]
[1733160368601,0.4013638,95831.0,95830.0,0.00084024]
[1733160368808,0.4243638,95831.0,95830.0,0.00084024]
[1733160369030,0.7743638,95831.0,95830.0,0.00084024]
[1733160370875,0.87520901,95831.0,95830.0,0.00084024]
[1733160371122,0.9367674,95831.0,95830.0,0.00084024]
[1733160371360,1.08476084,95831.0,95830.0,0.00084024]
[1733160371849,1.08676084,95831.0,95830.0,0.00184024]
[1733160372080,1.08476084,95831.0,95830.0,0.00084024]
[1733160372317,1.07720901,95831.0,95830.0,0.00184024]
[1733160372553,0.99918929,95831.0,95830.0,0.00184024]
[1733160372799,0.41091206,95831.0,95830.0,0.00184024]
[1733160373025,0.002,95831.0,95830.0,0.00184024]
[1733160373282,0.4013638,95831.0,95830.0,0.00184024]
[1733160373990,0.3993638,95831.0,95830.0,0.00084024]
[1733160374259,0.4063638,95831.0,95830.0,0.00184024]
[1733160374757,0.3993638,95831.0,95830.0,0.00084024]
[1733160374994,0.4013638,95831.0,95830.0,0.00084024]
[1733160375262,0.3993638,95831.0,95830.0,0.00084024]
[1733160375515,0.6090638,95831.0,95830.0,0.00084024]
[1733160375760,0.4003638,95831.0,95830.0,0.00084024]
[1733160376019,0.201,95831.0,95830.0,0.00084024]
[1733160376267,0.001,95831.0,95830.0,0.10368545]
[1733160376512,0.001,95831.0,95830.0,0.11448648]
[1733160376964,0.2,95835.0,95830.0,0.11448648]
[1733160377222,0.2,95835.0,95831.0,0.10284521]
[1733160377455,0.3993638,95835.0,95831.0,0.10284521]
[1733160377682,0.1993638,95832.0,95831.0,0.10284521]
[1733160377933,0.2,95864.0,95831.0,0.10284521]
[1733160377934,0.2,95841.0,95831.0,0.18334521]
[1733160378160,0.3993638,95845.0,95832.0,0.04209524]
[1733160378433,0.2,95843.0,95839.0,0.208682]
[1733160378699,0.2751,95872.0,95832.0,0.04209524]
[1733160378700,0.1993638,95853.0,95840.0,0.10469181]
[1733160378953,0.2,95860.0,95856.0,0.0467]
[1733160379189,0.2,95860.0,95857.0,0.10284521]
[1733160379698,0.1993638,95864.0,95857.0,0.10284521]
[1733160379917,0.1993638,95864.0,95856.0,0.0467]
[1733160379918,0.2,95873.0,95858.0,0.18189157]
[1733160380150,0.1993638,95872.0,95859.0,0.10469132]
[1733160380388,0.1993638,95872.0,95865.0,0.208625]
[1733160380623,0.1993638,95872.0,95866.0,0.10284521]
[1733160381346,0.1993638,95872.0,95856.0,0.0467]
[1733160381347,0.2,95859.0,95856.0,0.0467]
[1733160381599,0.2,95859.0,95857.0,0.10284521]
[1733160381841,0.2,95865.0,95857.0,0.11312973]
[1733160382077,0.2,95865.0,95858.0,0.208641]
[1733160382306,0.2,95865.0,95859.0,0.10284521]
[1733160383998,0.3993638,95865.0,95859.0,0.10284521]
[1733160384267,0.1993638,95870.0,95859.0,0.13503405]
[1733160384506,0.1993638,95872.0,95860.0,0.0474]
[1733160384892,0.2,95867.0,95861.0,0.10284521]
[1733160385274,0.2,95865.0,95861.0,0.10284521]
[1733160385719,0.2,95865.0,95862.0,0.417265]
[1733160385946,0.2,95871.0,95867.0,0.20862]
[1733160386166,0.1993638,95882.0,95879.0,0.208596]
[1733160386449,0.1993638,95884.0,95880.0,0.10284521]
[1733160386705,0.2,95883.0,95880.0,0.10284521]
[1733160387182,0.2,95881.0,95880.0,0.10284521]
[1733160388335,0.2,95881.0,95880.0,0.10784521]
[1733160388584,0.2,95881.0,95880.0,0.10284521]
[1733160389072,0.2,95881.0,95880.0,0.10784521]
[1733160389316,0.2,95881.0,95880.0,0.10284521]
[1733160389550,0.2,95881.0,95880.0,0.10484521]
[1733160390669,0.3993638,95881.0,95840.0,0.1882245]
[1733160390912,0.2,95901.0,95840.0,0.1882245]
[1733160390913,0.3993638,95857.0,95840.0,0.0758]
[1733160391160,0.3993638,95857.0,95840.0,0.28448]
[1733160391412,0.3993638,95857.0,95831.0,0.0501304]
[1733160391413,0.3993638,95857.0,95832.0,0.208698]
[1733160391851,0.40898986,95857.0,95831.0,0.0501304]
[1733160392070,0.40898986,95857.0,95834.0,0.208693]
[1733160392300,0.40898986,95857.0,95856.0,0.00711064]
[1733160392566,0.40898986,95857.0,95856.0,0.00011064]
[1733160392786,0.43198986,95857.0,95856.0,0.00011064]
[1733160393482,0.44738767,95857.0,95856.0,0.00011064]
[1733160393935,0.44738767,95857.0,95856.0,0.00711064]
[1733160394140,0.44738767,95857.0,95856.0,0.00011064]
[1733160394596,0.45238767,95857.0,95856.0,0.00111064]
[1733160394815,0.44738767,95857.0,95856.0,0.00011064]
[1733160395278,0.45238767,95857.0,95856.0,0.00111064]
[1733160395498,0.44738767,95857.0,95856.0,0.00011064]
[1733160395716,0.45238767,95857.0,95856.0,0.00011064]
[1733160396885,0.95523288,95857.0,95856.0,0.00011064]
[1733160397110,0.95023288,95857.0,95856.0,0.00011064]
[1733160397335,0.2,95832.0,95831.0,0.0017304]
[1733160397559,0.3993638,95832.0,95831.0,0.00190749]
[1733160397788,0.40899302,95832.0,95831.0,0.00190749]
[1733160398243,0.40899222,95832.0,95831.0,0.00190749]
[1733160398968,0.44739697,95832.0,95831.0,0.00190749]
[1733160399197,0.44739697,95832.0,95831.0,0.00690749]
[1733160399198,0.84739697,95832.0,95831.0,0.00690749]
[1733160399413,1.10024218,95832.0,95831.0,0.00690749]
[1733160400361,1.10024218,95832.0,95831.0,0.00190749]
[1733160400617,1.10024218,95832.0,95831.0,0.00890749]
[1733160400846,1.10124218,95832.0,95831.0,0.00890749]
[1733160401072,1.10024218,95832.0,95831.0,0.00190749]
[1733160401294,0.9723638,95828.0,95816.0,0.0017274]
[1733160401514,1.10024218,95828.0,95816.0,0.0017274]
[1733160403468,1.10424218,95828.0,95816.0,0.0017274]
[1733160403694,1.10024218,95828.0,95816.0,0.0017274]
[1733160404278,1.10924218,95828.0,95827.0,0.0018648]
[1733160405561,0.98339697,95828.0,95827.0,0.0018648]
[1733160405987,0.98339697,95828.0,95816.0,0.0017274]
[1733160405988,0.7993638,95817.0,95816.0,0.0017274]
[1733160406208,0.7993638,95817.0,95801.0,0.0017308]
[1733160406209,0.7993638,95802.0,95801.0,0.0017308]
[1733160406423,1.07724218,95802.0,95801.0,0.0017308]
[1733160406911,1.10024218,95802.0,95801.0,0.0017308]
[1733160407121,1.17754218,95802.0,95801.0,0.0017308]
[1733160407566,1.17754218,95802.0,95801.0,0.00190782]
[1733160408041,1.18354218,95802.0,95801.0,0.00290782]
[1733160410393,1.15850901,95802.0,95801.0,0.00290782]
[1733160410624,0.90617763,95802.0,95801.0,0.00290782]
[1733160410833,1.10617763,95802.0,95801.0,0.00290782]
[1733160413726,1.1157659,95802.0,95801.0,0.00290782]
[1733160414607,1.136064,95802.0,95801.0,0.00290782]
[1733160415277,0.9723638,95800.0,95786.0,0.0017278]
[1733160415544,1.10017763,95800.0,95799.0,0.00190673]
[1733160415768,1.14604902,95800.0,95799.0,0.00190673]
[1733160416344,0.9723638,95791.0,95786.0,0.0017278]
[1733160416619,1.10017763,95791.0,95786.0,0.0017278]
[1733160416815,1.130064,95791.0,95786.0,0.0017278]
[1733160417576,1.10817763,95791.0,95786.0,0.0017278]
[1733160418209,1.12416659,95791.0,95786.0,0.0017278]
[1733160419419,1.18897763,95791.0,95786.0,0.0017278]
[1733160419655,0.9723638,95788.0,95786.0,0.0017278]
[1733160419847,1.10017763,95788.0,95786.0,0.0017278]
[1733160420899,1.10917763,95788.0,95786.0,0.0017278]
[1733160421112,1.10017763,95788.0,95786.0,0.0017278]
[1733160421515,1.10917763,95788.0,95786.0,0.0017278]
[1733160424230,1.08617763,95788.0,95786.0,0.0017278]
[1733160424469,0.3993638,95774.0,95768.0,0.0774]
[1733160424729,0.57433242,95774.0,95768.0,0.0774]
[1733160425211,0.42433242,95774.0,95768.0,0.0774]
[1733160425442,0.42433242,95774.0,95773.0,0.048631]
[1733160425680,0.02496862,95774.0,95773.0,0.16283334]
[1733160425922,0.02496862,95774.0,95773.0,0.24243334]
[1733160426130,0.3993638,95778.0,95773.0,0.24243334]
[1733160426346,0.02508809,95777.0,95774.0,0.10284521]
[1733160426565,0.00964547,95776.0,95774.0,0.10284521]
[1733160426789,0.1993638,95778.0,95774.0,0.10284521]
[1733160427063,0.2,95788.0,95778.0,0.1227]
[1733160427313,0.2,95788.0,95773.0,0.001731]
[1733160427314,0.00965945,95787.0,95779.0,0.10469301]
[1733160427557,0.00965945,95786.0,95781.0,0.0462]
[1733160427762,0.00965945,95786.0,95774.0,0.019255]
[1733160427763,0.0008659,95790.0,95783.0,0.0462]
[1733160427973,0.0008659,95790.0,95784.0,0.17934521]
[1733160428197,0.0008659,95790.0,95785.0,0.02255452]
[1733160428414,0.0008659,95790.0,95786.0,0.10284521]
[1733160428629,0.0008659,95790.0,95787.0,0.1266]
[1733160428841,0.0008659,95790.0,95788.0,0.10284521]
[1733160429487,0.0038659,95790.0,95788.0,0.10284521]
[1733160429717,0.2,95797.0,95789.0,0.15294452]
[1733160429934,0.01548138,95796.0,95790.0,0.23284521]
[1733160430368,0.01548386,95795.0,95790.0,0.23284521]